bitfinex-derivatives/quotes_SOLF0:USTF0_20250923
["timestamp","ask_amount","ask_price","bid_price","bid_amount"]
[1758640300815,11.2157,219.06,219.01,9.85907308]
[1758640301115,7.11,219.09,219.01,9.85907308]
[1758640301515,9.53907308,219.09,219.01,9.85907308]
[1758640301813,4.1059,219.05,219.01,9.85907308]
[1758640302109,7.11,219.05,219.01,9.85907308]
[1758640302915,11.2159,219.05,219.01,9.85907308]
[1758640304418,4.1054,219.07,219.01,2.42907308]
[1758640304811,11.215,219.09,219.03,2.42907308]
[1758640305318,7.11,219.14,219.05,2.42907308]
[1758640305611,7.11,219.09,219.05,2.42907308]
[1758640305818,4.105,219.1,219.05,2.42907308]
[1758640306019,7.11,219.09,219.05,2.42907308]
[1758640307120,7.11,219.08,219.05,2.42907308]
[1758640308020,7.11,219.1,219.01,2.42907308]
[1758640308617,7.11,219.1,219.01,9.85907308]
[1758640308817,7.11,219.1,219.03,2.42907308]
[1758640309018,7.11,219.14,219.05,2.42907308]
[1758640309418,4.1047,219.11,219.05,2.42907308]
[1758640309614,7.11,219.14,219.07,2.42907308]
[1758640310220,4.1043,219.13,219.07,2.42907308]
[1758640311026,11.2146,219.12,219.07,2.42907308]
[1758640311225,11.2146,219.12,219.07,9.85907308]
[1758640312418,4.1039,219.15,219.07,2.42907308]
[1758640312620,4.1039,219.15,219.09,2.42907308]
[1758640313527,216.2261212,219.17,219.09,2.42907308]
[1758640313716,216.2261212,219.17,219.1,7.2]
[1758640313918,100.8261212,219.17,219.1,7.2]
[1758640314626,4.1039,219.16,219.1,7.2]
[1758640314821,100.8261212,219.17,219.1,7.2]
[1758640315027,7.47,219.16,219.07,2.42907308]
[1758640315824,4.1044,219.13,219.07,2.42907308]
[1758640319925,4.1044,219.13,219.05,7.2]
[1758640319926,11.5744,219.13,219.05,7.2]
[1758640320230,7.47,219.13,219.08,2.42907308]
[1758640320436,4.1038,219.16,219.08,2.42907308]
[1758640320636,4.1038,219.16,219.1,2.42907308]
[1758640321136,4.104,219.15,219.1,2.42907308]
[1758640321336,7.47,219.14,219.08,6.53417308]
[1758640321635,7.47,219.14,219.08,4.1051]
[1758640321835,7.47,219.14,219.09,2.42907308]
[1758640322035,7.47,219.14,219.09,9.62907308]
[1758640323034,7.47,219.2,219.11,2.42907308]
[1758640324031,7.47,219.2,219.1,7.2]
[1758640324237,7.47,219.2,219.12,2.42907308]
[1758640324640,7.47,219.2,219.14,2.42907308]
[1758640325531,7.47,219.2,219.14,6.53307308]
[1758640326335,4.1029,219.21,219.14,6.53307308]
[1758640328340,104.54,219.23,219.14,6.53307308]
[1758640329328,7.47,219.24,219.16,2.42907308]
[1758640330134,11.5727,219.22,219.18,2.42907308]
[1758640330338,7.47,219.29,219.2,2.42907308]
[1758640330538,7.47,219.29,219.22,2.42907308]
[1758640330945,7.47,219.26,219.22,2.42907308]
[1758640331146,7.47,219.26,219.2,4.1028]
[1758640331342,7.47,219.26,219.22,2.42907308]
[1758640331840,7.04,219.28,219.24,2.42907308]
[1758640332341,7.04,219.28,219.22,7.5]
[1758640332342,11.1409,219.31,219.26,9.92907308]
[1758640332748,7.04,219.31,219.26,9.92907308]
[1758640333247,7.04,219.31,219.28,2.42907308]
[1758640333637,4.1009,219.32,219.28,2.42907308]
[1758640333840,11.1409,219.32,219.28,2.42907308]
[1758640334345,7.04,219.32,219.28,9.92907308]
[1758640335741,4.1001,219.35,219.29,7.5]
[1758640335941,4.1001,219.35,219.31,7.5]
[1758640336143,7.04,219.37,219.31,7.5]
[1758640336342,71.9357,219.49,219.31,7.5]
[1758640336343,4.0994,219.4,219.33,2.42907308]
[1758640336543,352.0,219.44,219.35,2.42907308]
[1758640336748,66.18187308,219.45,219.34,9.92907308]
[1758640336952,115.14,219.46,219.34,9.92907308]
[1758640336953,4.0988,219.43,219.34,9.92907308]
[1758640337358,7.04,219.44,219.36,2.42907308]
[1758640338056,7.04,219.44,219.37,7.5]
[1758640338253,4.098,219.47,219.41,9.92907308]
[1758640338551,115.12,219.49,219.41,9.92907308]
[1758640338552,7.04,219.49,219.41,7.5]
[1758640338951,7.04,219.49,219.37,62.0]
[1758640339454,11.1377,219.49,219.38,7.5]
[1758640339760,7.04,219.49,219.38,7.5]
[1758640339945,4.0983,219.45,219.38,7.5]
[1758640340761,4.0979,219.48,219.38,7.5]
[1758640342152,4.0979,219.48,219.4,7.5]
[1758640343052,4.0979,219.48,219.4,11.27803554]
[1758640343561,7.04,219.49,219.41,4.099]
[1758640343754,4.0973,219.51,219.42,7.64]
[1758640343959,166.04849262,219.54,219.43,3.77803554]
[1758640344658,4.097,219.52,219.43,7.87663554]
[1758640345057,166.04849262,219.54,219.43,3.77803554]
[1758640345354,63.7139,219.58,219.47,7.64]
[1758640345355,7.09,219.58,219.47,7.64]
[1758640346157,7.09,219.56,219.47,7.64]
[1758640346860,7.09,219.56,219.43,7.87653554]
[1758640346861,7.09,219.5,219.43,114.98]
[1758640347054,4.0972,219.51,219.43,114.98]
[1758640347252,4.0972,219.51,219.44,7.64]
[1758640349261,4.0968,219.53,219.44,7.64]
[1758640350155,11.1872,219.51,219.44,7.64]
[1758640350355,7.09,219.51,219.41,119.75206918]
[1758640350759,11.1872,219.51,219.42,4.0987]
[1758640350962,7.09,219.51,219.43,7.64]
[1758640351168,4.0968,219.54,219.43,7.64]
[1758640351364,4.0968,219.54,219.43,11.41803554]
[1758640351561,4.0968,219.54,219.46,7.64]
[1758640351866,7.09,219.55,219.46,7.64]
[1758640352063,4.0962,219.57,219.46,3.77803554]
[1758640352263,4.0962,219.57,219.47,7.64]
[1758640352873,7.09,219.59,219.49,4.0975]
[1758640353063,7.09,219.59,219.47,7.64]
[1758640353267,7.09,219.66,219.5,7.64]
[1758640353469,63.6941,219.65,219.53,4.0968]
[1758640353774,7.09,219.64,219.53,4.0968]
[1758640354462,11.1849,219.64,219.53,11.7368]
[1758640354673,7.09,219.64,219.55,4.0964]
[1758640355166,4.0951,219.63,219.53,7.64]
[1758640355566,4.0957,219.59,219.53,7.64]
[1758640355768,11.1857,219.59,219.5,7.87523554]
[1758640356169,11.1857,219.59,219.51,11.737]
[1758640356468,4.0952,219.62,219.51,7.64]
[1758640357068,7.09,219.64,219.54,7.64]
[1758640357568,4.0952,219.62,219.54,7.64]
[1758640358869,4.0952,219.62,219.54,11.7364]
[1758640359173,11.1848,219.64,219.54,7.64]
[1758640359373,7.09,219.64,219.54,7.64]
[1758640359670,7.09,219.63,219.49,7.64]
[1758640359867,10.86803554,219.63,219.49,7.64]
[1758640360460,4.0961,219.57,219.5,4.0974]
[1758640361369,4.0961,219.57,219.49,7.64]
[1758640362674,7.09,219.59,219.45,62.0]
[1758640362675,7.09,219.56,219.46,4.0981]
[1758640362876,7.09,219.56,219.45,7.64]
[1758640365571,7.09,219.5,219.37,7.64]
[1758640365776,7.09,219.47,219.37,7.64]
[1758640366177,4.0985,219.45,219.37,7.64]
[1758640366579,4.0987,219.43,219.33,69.64]
[1758640366775,4.0987,219.43,219.33,7.64]
[1758640367083,7.09,219.44,219.33,7.64]
[1758640367283,4.0991,219.41,219.33,7.64]
[1758640368581,7.09,219.4,219.32,4.1007]
[1758640368788,4.0994,219.39,219.29,4.1011]
[1758640369379,7.09,219.38,219.29,4.1011]
[1758640370271,7.09,219.38,219.31,4.1009]
[1758640370478,7.09,219.38,219.3,7.64]
[1758640371078,7.09,219.5,219.37,63.7739]
[1758640371284,7.09,219.5,219.37,67.55193554]
[1758640371678,7.09,219.5,219.4,4.0992]
[1758640371982,7.09,219.5,219.39,63.7688]
[1758640372288,7.09,219.5,219.44,4.0985]
[1758640373475,7.09,219.5,219.41,4.0989]
[1758640374175,7.65,219.49,219.38,66.0994]
[1758640374377,7.65,219.49,219.38,4.0994]
[1758640375883,4.0978,219.48,219.38,4.0994]
[1758640377489,63.731,219.53,219.35,62.0]
[1758640377490,7.65,219.46,219.35,4.1]
[1758640378388,7.65,219.46,219.37,4.0997]
[1758640378578,4.0983,219.45,219.35,7.35]
[1758640378782,7.65,219.44,219.35,7.35]
[1758640379090,7.65,219.44,219.35,4.1002]
[1758640379492,7.65,219.44,219.31,122.11]
[1758640380486,7.65,219.48,219.36,71.1281]
[1758640380789,7.65,219.48,219.37,7.35]
[1758640380991,7.65,219.48,219.41,4.0989]
[1758640381491,7.65,219.48,219.38,4.0995]
[1758640381691,7.65,219.48,219.37,7.35]
[1758640382192,11.7477,219.48,219.39,4.0993]
[1758640383093,4.0981,219.46,219.37,7.35]
[1758640383694,11.7478,219.48,219.38,4.0994]
[1758640384186,7.65,219.48,219.37,7.35]
[1758640384393,7.65,219.48,219.39,4.0992]
[1758640384780,7.65,219.48,219.4,63.7666]
[1758640384988,7.65,219.55,219.41,7.35]
[1758640385194,7.65,219.55,219.45,7.35]
[1758640385592,7.65,219.62,219.47,63.7457]
[1758640385896,7.65,219.62,219.48,7.35]
[1758640386192,4.0954,219.61,219.49,63.7396]
[1758640386391,7.65,219.62,219.51,7.35]
[1758640386993,7.65,219.62,219.55,4.0962]
[1758640387184,7.65,219.68,219.55,7.35]
[1758640387386,4.0944,219.66,219.58,4.0957]
[1758640388391,7.65,219.68,219.58,4.0957]
[1758640389396,4.0945,219.66,219.55,11.4463]
[1758640389594,7.65,219.66,219.55,7.35]
[1758640389989,71.3428,219.66,219.5,38.66]
[1758640390189,7.65,219.64,219.48,69.11]
[1758640390994,7.65,219.61,219.51,4.0972]
[1758640391199,7.65,219.61,219.48,7.35]
[1758640391801,4.0957,219.6,219.51,4.097]
[1758640392804,7.65,219.61,219.52,7.66]
[1758640393005,11.7046,219.65,219.52,7.66]
[1758640393302,7.61,219.65,219.52,7.66]
[1758640394709,4.0953,219.62,219.52,7.66]
[1758640394896,7.61,219.65,219.52,7.66]
[1758640395303,11.7046,219.65,219.53,4.0968]
[1758640395503,11.7046,219.65,219.52,7.66]
[1758640395504,7.61,219.65,219.52,7.66]
[1758640396002,7.61,219.65,219.54,7.66]
[1758640396201,4.0942,219.68,219.56,7.66]
[1758640396390,7.61,219.69,219.6,4.0955]
[1758640396791,7.61,219.69,219.58,7.66]
[1758640398504,7.61,219.69,219.61,4.0951]
[1758640399311,7.61,219.69,219.58,7.66]
[1758640399312,7.61,219.69,219.62,4.095]
[1758640399807,7.61,219.69,219.61,7.66]
[1758640399998,65.5132,219.73,219.61,7.66]
[1758640400196,61.42,219.73,219.61,7.66]
[1758640400395,4.0936,219.71,219.61,7.66]
[1758640400606,7.61,219.7,219.61,7.66]
[1758640401301,11.7038,219.7,219.61,11.7551]
[1758640401907,11.7038,219.7,219.62,4.095]
[1758640402107,7.61,219.7,219.61,7.66]
[1758640402907,7.61,219.7,219.62,4.0951]
[1758640404104,4.0939,219.69,219.62,4.0951]
[1758640404311,7.61,219.7,219.62,4.0951]
[1758640404706,7.17,219.74,219.61,7.63]
[1758640404910,7.17,219.74,219.63,7.63]
[1758640405710,7.17,219.74,219.68,4.094]
[1758640406207,4.0923,219.77,219.68,4.094]
[1758640406609,4.0923,219.77,219.67,7.63]
[1758640407909,4.0923,219.77,219.69,4.0937]
[1758640408103,7.17,219.78,219.67,7.63]
[1758640408508,7.17,219.78,219.7,4.0935]
[1758640409912,11.2623,219.78,219.7,4.0935]
[1758640411613,7.17,219.78,219.7,4.0935]
[1758640411808,7.17,219.78,219.7,11.7235]
[1758640412917,7.17,219.78,219.71,4.0933]
[1758640413323,344.32,219.81,219.7,7.63]
[1758640414213,4.0919,219.8,219.7,7.63]
[1758640414721,4.0919,219.8,219.74,2.41139172]
[1758640415019,344.32,219.81,219.74,2.41139172]
[1758640415414,7.17,219.9,219.8,2.41139172]
[1758640415612,7.17,219.9,219.84,2.41139172]
[1758640416511,7.17,219.9,219.83,4.0912]
[1758640417819,7.17,219.9,219.85,11.7208]
[1758640418621,70.55,219.94,219.85,4.0908]
[1758640418821,70.55,219.94,219.84,7.63]
[1758640419021,7.17,219.93,219.81,62.0]
[1758640419420,7.17,219.93,219.8,7.63]
[1758640419421,7.17,219.9,219.8,7.63]
[1758640419815,178.0711,219.94,219.75,7.63]
[1758640419816,7.17,219.91,219.75,7.63]
[1758640420014,70.7952,219.89,219.75,7.63]
[1758640420217,7.17,219.86,219.75,7.63]
[1758640420620,11.2613,219.83,219.75,7.63]
[1758640421519,4.0916,219.81,219.75,7.63]
[1758640421825,4.0916,219.81,219.71,13.80709796]
[1758640422524,11.262,219.79,219.71,7.63]
[1758640422724,7.17,219.79,219.69,344.1]
[1758640423023,7.17,219.79,219.69,355.8238]
[1758640423418,11.2621,219.79,219.69,355.8238]
[1758640423625,7.17,219.79,219.69,355.8238]
[1758640424628,70.08,219.82,219.71,7.63]
[1758640425320,11.2617,219.81,219.71,11.7233]
[1758640425522,70.08,219.82,219.69,344.1]
[1758640425724,70.08,219.82,219.67,122.05]
[1758640425927,7.17,219.81,219.67,122.05]
[1758640426227,4.0919,219.8,219.71,4.0934]
[1758640426527,70.08,219.82,219.67,122.05]
[1758640426723,7.17,219.81,219.67,7.63]
[1758640427326,69.11,219.81,219.67,7.63]
[1758640427524,70.8213,219.8,219.67,7.63]
[1758640427824,7.17,219.78,219.67,7.63]
[1758640428126,7.17,219.75,219.67,7.63]
[1758640428428,7.17,219.75,219.62,7.63]
[1758640429227,7.17,219.75,219.62,71.3318]
[1758640429925,7.17,219.75,219.66,4.0942]
[1758640431324,7.17,219.75,219.66,7.63]
[1758640431525,7.17,219.82,219.67,63.6881]
[1758640431729,7.17,219.82,219.69,7.63]
[1758640432926,11.262,219.79,219.69,7.63]
[1758640433527,4.0923,219.78,219.69,7.63]
[1758640434027,63.6544,219.79,219.65,4.0945]
[1758640434231,6.96,219.78,219.63,7.68]
[1758640434628,11.0529,219.74,219.63,7.68]
[1758640434929,6.96,219.74,219.63,7.68]
[1758640436128,70.6291,219.74,219.58,7.68]
[1758640436524,6.96,219.71,219.58,7.68]
[1758640436826,6.96,219.67,219.58,7.68]
[1758640437033,6.96,219.67,219.52,7.68]
[1758640437429,70.6493,219.67,219.54,4.0965]
[1758640438026,11.0553,219.62,219.52,7.68]
[1758640439032,6.96,219.62,219.52,7.68]
[1758640440126,6.96,219.62,219.57,4.0959]
[1758640440329,6.96,219.68,219.56,7.68]
[1758640440526,6.96,219.68,219.58,63.7142]
[1758640441225,6.96,219.68,219.59,7.68]
[1758640441427,121.36,219.73,219.59,7.68]
[1758640441624,6.96,219.73,219.6,63.7081]
[1758640441829,6.96,219.73,219.62,7.68]
[1758640442434,6.96,219.73,219.56,63.7187]
[1758640442435,6.96,219.72,219.56,63.7187]
[1758640442635,4.0937,219.7,219.61,4.0953]
[1758640443837,4.0937,219.7,219.62,4.095]
[1758640445135,6.96,219.69,219.6,4.0955]
[1758640446535,6.96,219.69,219.61,4.0951]
[1758640447635,6.96,219.69,219.59,7.68]
[1758640447833,114.4,219.71,219.53,7.68]
[1758640447834,70.6467,219.68,219.53,7.68]
[1758640448040,6.96,219.66,219.53,7.68]
[1758640448441,6.96,219.66,219.54,4.0964]
[1758640449935,4.0951,219.62,219.54,4.0964]
[1758640450340,133.4238,219.62,219.49,7.68]
[1758640450538,6.96,219.61,219.49,7.68]
[1758640450936,114.4,219.6,219.49,7.68]
[1758640451142,6.96,219.61,219.49,7.68]
[1758640451440,4.0961,219.57,219.49,4.0974]
[1758640451741,7.12,219.56,219.44,7.2]
[1758640452341,4.0965,219.55,219.47,4.0979]
[1758640452548,4.0965,219.55,219.44,7.2]
[1758640453637,4.0968,219.53,219.44,7.2]
[1758640453846,7.12,219.52,219.44,7.2]
[1758640454347,7.12,219.53,219.4,7.2]
[1758640455144,7.12,219.5,219.4,7.2]
[1758640456345,7.12,219.5,219.41,4.0989]
[1758640456941,7.12,219.5,219.4,7.2]
[1758640456942,11.2174,219.5,219.4,7.2]
[1758640457349,118.4174,219.5,219.4,7.2]
[1758640457649,118.4174,219.5,219.39,1.44662]
[1758640458348,7.12,219.47,219.39,1.44662]
[1758640458737,21.05428618,219.47,219.39,1.44662]
[1758640459050,4.0982,219.46,219.39,1.44662]
[1758640459449,7.12,219.45,219.39,1.44662]
[1758640461049,121.54,219.45,219.39,1.44662]
[1758640461453,7.12,219.45,219.39,1.44662]
[1758640462053,40.06339114,220.1,219.39,8.64662]
[1758640462054,35.72,219.48,219.39,8.64662]
[1758640462756,7.12,219.49,219.39,12.74592]
[1758640463057,62.88,219.48,219.39,8.64662]
[1758640463355,7.12,219.49,219.39,8.64662]
[1758640463553,20.51080048,219.49,219.39,8.64662]
[1758640463753,79.49080048,219.49,219.41,4.099]
[1758640464152,134.95080048,219.49,219.41,4.099]
[1758640464356,7.12,219.49,219.42,4.0987]
[1758640464653,7.12,219.49,219.39,8.64662]
[1758640464654,7.67,219.47,219.39,1.44662]
[1758640465650,4.0982,219.46,219.39,1.44662]
[1758640465848,7.67,219.47,219.39,1.44662]
[1758640466247,4.0986,219.44,219.39,1.44662]
[1758640466751,7.67,219.43,219.39,1.44662]
[1758640466957,122.11,219.48,219.39,1.44662]
[1758640467560,7.67,219.48,219.39,1.44662]
[1758640468861,4.0979,219.47,219.39,1.44662]
[1758640469453,4.0984,219.45,219.39,1.44662]
[1758640469654,71.4166,219.47,219.39,1.44662]
[1758640469859,7.67,219.45,219.39,1.44662]
[1758640470559,122.13,219.45,219.39,1.44662]
[1758640470863,4.0985,219.44,219.39,1.44662]
[1758640471053,7.67,219.43,219.39,1.44662]
[1758640471254,7.67,219.44,219.39,1.44662]
[1758640471458,178.2126,219.45,219.39,1.44662]
[1758640471655,7.67,219.44,219.39,1.44662]
[1758640471862,7.67,219.41,219.39,1.44662]
[1758640472059,7.67,219.43,219.39,1.44662]
[1758640472262,63.7587,219.43,219.39,1.44662]
[1758640472564,7.67,219.44,219.39,1.44662]
[1758640472765,7.67,219.43,219.39,1.44662]
[1758640472965,63.7554,219.44,219.39,1.44662]
[1758640473159,114.46,219.45,219.39,1.44662]
[1758640473160,4.0991,219.41,219.39,1.44662]
[1758640473368,7.67,219.4,219.39,1.44662]
[1758640473563,4.0996,219.38,219.27,7.17]
[1758640473766,7.67,219.4,219.27,7.17]
[1758640474164,7.67,219.37,219.27,7.17]
[1758640475570,114.46,219.41,219.27,7.17]
[1758640476172,114.46,219.41,219.31,7.17]
[1758640476462,114.46,219.43,219.31,7.17]
[1758640476860,7.67,219.44,219.31,7.17]
[1758640477064,7.67,219.42,219.31,7.17]
[1758640477667,126.2289,219.42,219.31,11.2709]
[1758640477868,122.13,219.42,219.31,7.17]
[1758640478272,4.0993,219.4,219.31,7.17]
[1758640479071,4.0997,219.38,219.27,4.1015]
[1758640480269,4.1,219.37,219.27,4.1015]
[1758640480669,7.67,219.39,219.27,4.1015]
[1758640480869,7.67,219.39,219.3,7.17]
[1758640484481,11.7696,219.39,219.3,7.17]
[1758640486283,7.67,219.39,219.31,4.1009]
[1758640486483,7.67,219.39,219.3,7.17]
[1758640486885,7.67,219.39,219.3,11.2711]
[1758640487187,7.67,219.39,219.3,7.17]
[1758640487388,11.7696,219.39,219.3,7.17]
[1758640488987,4.0998,219.38,219.3,7.17]
[1758640490089,7.67,219.4,219.3,7.17]
[1758640490291,122.13,219.4,219.3,7.17]
[1758640490786,122.13,219.4,219.23,9.72382156]
[1758640491089,7.67,219.39,219.24,7.17]
[1758640491289,7.67,219.38,219.24,7.17]
[1758640492180,4.1005,219.34,219.24,7.17]
[1758640493578,4.1005,219.34,219.22,0.70987033]
[1758640493579,7.67,219.35,219.27,11.5416]
[1758640494180,7.67,219.35,219.27,7.44]
[1758640494381,7.67,219.35,219.14,7.44]
[1758640494382,71.1422,219.28,219.14,7.44]
[1758640494576,178.4852,219.27,219.14,7.44]
[1758640494781,7.34,219.26,219.14,7.44]
[1758640494982,21.17414767,219.26,219.14,7.44]
[1758640495587,21.17414767,219.26,219.14,63.8408]
[1758640495787,21.17414767,219.26,219.15,7.44]
[1758640496688,21.17414767,219.26,219.17,4.1035]
[1758640496981,21.17414767,219.26,219.15,7.44]
[1758640498783,25.27604767,219.26,219.15,11.5438]
[1758640499490,25.27604767,219.26,219.17,4.1035]
[1758640499989,21.17414767,219.26,219.15,7.44]
[1758640500179,5.00792389,219.36,219.18,71.2677]
[1758640500379,7.34,219.34,219.2,7.44]
[1758640500588,4.1006,219.33,219.2,7.44]
[1758640501395,7.34,219.3,219.2,7.44]
[1758640501987,7.34,219.3,219.23,4.1024]
[1758640502195,7.34,219.3,219.24,7.44]
[1758640502389,7.34,219.35,219.24,7.44]
[1758640502595,7.34,219.35,219.27,11.5416]
[1758640502795,7.34,219.35,219.27,7.44]
[1758640504292,7.34,219.35,219.25,4.1019]
[1758640504293,7.34,219.34,219.2,7.44]
[1758640505087,7.34,219.34,219.22,71.2581]
[1758640505287,7.34,219.34,219.24,7.44]
[1758640506396,7.34,219.34,219.24,11.5422]
[1758640507096,7.34,219.34,219.26,4.1018]
[1758640507692,13.47373857,219.37,219.28,11.5414]
[1758640507897,7.34,219.39,219.28,11.5414]
[1758640508086,11.4394,219.39,219.28,7.44]
[1758640509502,4.0999,219.37,219.28,7.44]
[1758640509897,7.34,219.39,219.28,7.44]
[1758640510102,11.4396,219.39,219.29,4.1013]
[1758640511495,7.34,219.55,219.38,63.7716]
[1758640511794,7.34,219.55,219.4,63.7656]
[1758640511996,7.34,219.55,219.46,7.04]
[1758640512396,63.717,219.58,219.39,7.04]
[1758640512592,7.29,219.53,219.39,7.04]
[1758640513998,63.7434,219.48,219.34,7.04]
[1758640514202,7.29,219.47,219.34,7.04]
[1758640514596,63.7434,219.48,219.34,7.04]
[1758640514597,4.0987,219.43,219.34,7.04]
[1758640514803,7.29,219.43,219.34,7.04]
[1758640515205,4.0992,219.4,219.3,4.1009]
[1758640515598,7.29,219.43,219.3,4.1009]
[1758640515798,4.0991,219.41,219.3,4.1009]
[1758640516593,7.29,219.43,219.27,344.72]
[1758640516798,7.29,219.43,219.32,7.04]
[1758640517101,7.29,219.43,219.35,4.1002]
[1758640518003,4.0983,219.46,219.35,11.1402]
[1758640518199,63.7495,219.46,219.31,62.0]
[1758640518402,7.29,219.44,219.3,7.04]
[1758640518800,7.29,219.52,219.33,7.04]
[1758640519001,7.29,219.52,219.35,7.04]
[1758640519401,63.7299,219.53,219.35,11.1401]
[1758640519402,7.29,219.48,219.35,11.1401]
[1758640519601,7.29,219.46,219.35,7.04]
[1758640520200,4.0989,219.42,219.35,7.04]
[1758640520399,11.3889,219.42,219.32,4.1006]
[1758640520704,11.3889,219.42,219.3,7.04]
[1758640520906,11.3889,219.42,219.31,4.1007]
[1758640521101,7.29,219.42,219.3,70.834]
[1758640521605,7.29,219.42,219.31,4.1007]
[1758640522204,7.29,219.42,219.3,7.04]
[1758640522205,4.0991,219.41,219.3,7.04]
[1758640522604,7.29,219.42,219.3,7.04]
[1758640522995,7.11,219.48,219.33,7.47]
[1758640523600,4.0982,219.46,219.36,4.0998]
[1758640523804,7.11,219.48,219.33,7.47]
[1758640524104,4.0987,219.43,219.33,11.5704]
[1758640524310,7.11,219.43,219.33,11.5704]
[1758640524603,7.11,219.43,219.28,7.47]
[1758640524800,11.2087,219.43,219.28,7.47]
[1758640525196,7.11,219.43,219.34,4.1003]
[1758640525414,7.11,219.43,219.3,71.2636]
[1758640525708,7.11,219.43,219.29,70.00496576]
[1758640525709,7.11,219.43,219.31,63.7924]
[1758640525907,7.11,219.43,219.32,7.47]
[1758640527014,11.2087,219.43,219.33,4.1004]
[1758640527305,7.11,219.43,219.33,4.1004]
[1758640527714,7.11,219.43,219.32,7.47]
[1758640528303,11.2087,219.43,219.32,7.47]
[1758640528610,7.11,219.43,219.32,7.47]
[1758640529813,4.0992,219.41,219.32,11.5706]
[1758640530504,70.8737,219.41,219.26,7.47]
[1758640530699,7.11,219.39,219.23,7.47]
[1758640530915,105.99,219.39,219.23,7.47]
[1758640531122,110.0895,219.39,219.27,4.1017]
[1758640531408,123.93,219.39,219.23,7.47]
[1758640531712,123.93,219.39,219.26,4.1018]
[1758640532217,4.1005,219.33,219.26,4.1018]
[1758640532418,4.1005,219.33,219.24,4.1022]
[1758640532912,4.1009,219.32,219.24,4.1022]
[1758640534003,4.1004,219.34,219.24,4.1022]
[1758640534812,7.11,219.35,219.23,7.47]
[1758640535602,7.11,219.35,219.24,63.813]
[1758640536014,7.11,219.35,219.23,7.47]
[1758640536815,4.1008,219.32,219.23,7.47]
[1758640537018,7.11,219.33,219.23,7.47]
[1758640537209,70.897,219.33,219.18,7.47]
[1758640538117,11.2116,219.28,219.19,4.103]
[1758640538410,11.2116,219.28,219.13,6.20736576]
[1758640538411,7.11,219.28,219.13,6.20736576]
[1758640538613,7.11,219.28,219.13,7.47]
[1758640539108,7.11,219.28,219.16,4.1036]
[1758640539109,4.1022,219.24,219.16,4.1036]
[1758640539815,4.1022,219.24,219.13,7.47]
[1758640540916,4.1018,219.27,219.13,7.47]
[1758640541114,4.1018,219.27,219.14,63.8421]
[1758640541318,4.1018,219.27,219.15,7.47]